Workbook

Sheet Sheet1
A1: 4 story ALF ….75 ALF UNITS + 25 Memory care units | T1: Issued 7/18/2025
A2: Total Building area of 106,000 Sq ft with a foot print of 29,000 Sq ft Ground floor with 11 ALF units , 11,000 Sq ft amenities and 9,000 Sq ft service area - Please check the conceptual building design
A3: Operating Proforma - Independent Living
B4: Year 1 - As-Built | F4: Year 2 - As-Stabilized 3% increase / year | J4: Year 3 | N4: Year 4 | R4: Year 5
B5: % | C5: Total | D5: Per Unit | E5: Per SF | F5: % | G5: Total | H5: Per Unit | I5: Per SF | J5: % | K5: Total | L5: Per Unit | M5: Per SF | N5: % | O5: Total | P5: Per Unit | Q5: Per SF | R5: % | S5: Total | T5: Per Unit | U5: Per SF
A6: REVENUE
A7: Gross Potential Revenue | C7: 8238000 | D7: =C7/100 -> 82380 | E7: =C7/93668 -> 87.94892599 | G7: 9055489 | H7: =G7/100 -> 90554.89 | I7: =G7/93668 -> 96.67644233 | K7: 9621695 | L7: =K7/100 -> 96216.95 | M7: =K7/93668 -> 102.7212602 | O7: =K7*1.03 -> 9910345.85 | P7: =O7/100 -> 99103.4585 | Q7: =O7/93668 -> 105.802898 | S7: 10207657 | T7: =S7/100 -> 102076.57 | U7: =S7/93668 -> 108.9769932
A8: Utility Reimb $112K Other inc | C8: 238448 | D8: 2384.48 | E8: 2.545671948 | G8: 245601 | H8: 2456.01 | I8: 2.622037409 | K8: 252970 | L8: 2529.7 | M8: 2.700708887 | O8: 260559 | P8: 2605.59 | Q8: 2.781729086 | S8: 268375 | T8: 2683.75 | U8: 2.865172738
A9: Gross Rental Income | C9: =SUM(C7:C8) -> 8476448 | D9: 84764.48 | E9: 90.49459794 | G9: =SUM(G7:G8) -> 9301090 | H9: 93010.9 | I9: 99.29847974 | K9: =SUM(K7:K8) -> 9874665 | L9: 98746.65 | M9: 105.4219691 | O9: 10170905 | P9: 101709.05 | Q9: 108.5846287 | S9: 10476032 | T9: 104760.32 | U9: 111.8421659
A12: Effective Gross Rent | C12: 8476448 | D12: =C12/100 -> 84764.48 | E12: =C12/93668 -> 90.49459794 | G12: 9301090 | H12: =G12/100 -> 93010.9 | I12: =G12/93668 -> 99.29847974 | K12: 9874665 | L12: =K12/100 -> 98746.65 | M12: =K12/93668 -> 105.4219691 | O12: 10170905 | P12: =O12/100 -> 101709.05 | Q12: =O12/93668 -> 108.5846287 | S12: 10476032 | T12: =S12/100 -> 104760.32 | U12: =S12/93668 -> 111.8421659
A14: EXPENSES
A16: Management Fee (% EGI) | B16: 0.03 | C16: =B16*C12 -> 254293.44 | D16: =C16/100 -> 2542.9344 | E16: =C16/93668 -> 2.714837938 | F16: 0.03 | G16: =F16*G12 -> 279032.7 | H16: =G16/100 -> 2790.327 | I16: =G16/93668 -> 2.978954392 | J16: 0.03 | K16: =J16*K12 -> 296239.95 | L16: =K16/100 -> 2962.3995 | M16: =K16/93668 -> 3.162659072 | N16: 0.03 | O16: =N16*O12 -> 305127.15 | P16: =O16/100 -> 3051.2715 | Q16: =O16/93668 -> 3.257538861 | R16: 0.03 | S16: =R16*S12 -> 314280.96 | T16: =S16/100 -> 3142.8096 | U16: =S16/93668 -> 3.355264978
A17: Payroll | B17: 0.245 | C17: 334968 | D17: 3349.68 | E17: 3.576119913 | F17: 0.25 | G17: 363651 | H17: 3636.51 | I17: 3.882339753 | J17: 0.25 | K17: 386077 | L17: 3860.77 | M17: 4.121759833 | N17: 0.25 | O17: 397659 | P17: 3976.59 | Q17: 4.245409318 | R17: 0.25 | S17: 409589 | T17: 4095.89 | U17: 4.372774053
A18: Utilities | B18: 0.087 | C18: 408000 | D18: 4080 | E18: 4.355809882 | F18: 0.087 | G18: 414630 | H18: 4146.3 | I18: 4.426591792 | J18: 0.087 | K18: 440199 | L18: 4401.99 | M18: 4.699566554 | N18: 0.087 | O18: 453405 | P18: 4534.05 | Q18: 4.840553871 | R18: 0.087 | S18: 467007 | T18: 4670.07 | U18: 4.985768886
A19: Repairs & Maintenance | B19: 0.019 | C19: 336000 | D19: 3360 | E19: 3.58713755 | F19: 0.01912459766 | G19: 195724 | H19: 1957.24 | I19: 2.089550327 | J19: 0.019 | K19: 207794 | L19: 2077.94 | M19: 2.218409702 | N19: 0.01880104927 | O19: 214028 | P19: 2140.28 | Q19: 2.284963915 | R19: 0.0192710755 | S19: 220448 | T19: 2204.48 | U19: 2.353503865
A20: Admin, Marketing & Activities | B20: 0.04 | C20: 58725 | D20: 587.25 | E20: 0.6269483708 | F20: 0.04 | G20: 63754 | H20: 637.54 | I20: 0.680637998 | J20: 0.04 | K20: 67685 | L20: 676.85 | M20: 0.7226053722 | N20: 0.04 | O20: 69716 | P20: 697.16 | Q20: 0.7442883375 | R20: 0.04 | S20: 70807 | T20: 708.07 | U20: 0.7559358586
A21: Food costs | C21: 199923 | D21: 1999.23 | E21: 2.13437887 | G21: 200000 | H21: 2000 | I21: 2.135200922 | K21: 200000 | L21: 2000 | M21: 2.135200922 | O21: 200000 | P21: 2000 | Q21: 2.135200922 | S21: 200000 | T21: 2000 | U21: 2.135200922
A22: Insurance | B22: 0.043 | C22: 140940 | D22: 1409.4 | E22: 1.50467609 | F22: 0.043 | G22: 153009 | H22: 1530.09 | I22: 1.63352479 | J22: 0.043 | K22: 162445 | L22: 1624.45 | M22: 1.734263569 | N22: 0.043 | O22: 167318 | P22: 1673.18 | Q22: 1.78628774 | R22: 0.043 | S22: 172338 | T22: 1723.38 | U22: 1.839881283
A23: Property Taxes *(c) (1/2 of 3%) | B23: 0.015 | C23: 441620 | D23: 4416.2 | E23: 4.714737157 | F23: 0.015 | G23: 305000 | H23: 3050 | I23: 3.256181407 | J23: 0.015 | K23: 305000 | L23: 3050 | M23: 3.256181407 | N23: 0.015 | O23: 305000 | P23: 3050 | Q23: 3.256181407 | R23: 0.015 | S23: 305000 | T23: 3050 | U23: 3.256181407
A24: Total Expenses | B24: 0.558 | C24: =SUM(C16:C23) -> 2174469.44 | D24: =SUM(D16:D23) -> 21744.6944 | E24: =SUM(E16:E23) -> 23.21464577 | F24: =SUM(F16:F23) -> 0.4841245977 | G24: =SUM(G16:G23) -> 1974800.7 | H24: =SUM(H16:H23) -> 19748.007 | I24: =SUM(I16:I23) -> 21.08298138 | J24: 0.558 | K24: =SUM(K16:K23) -> 2065439.95 | L24: =SUM(L16:L23) -> 20654.3995 | M24: =SUM(M16:M23) -> 22.05064643 | N24: 0.558 | O24: =SUM(O16:O23) -> 2112253.15 | P24: =SUM(P16:P23) -> 21122.5315 | Q24: =SUM(Q16:Q23) -> 22.55042437 | R24: 0.558 | S24: =SUM(S16:S23) -> 2159469.96 | T24: =SUM(T16:T23) -> 21594.6996 | U24: =SUM(U16:U23) -> 23.05451125
D25: =C25/100 -> 0 | H25: =G25/100 -> 0 | L25: =K25/100 -> 0 | P25: =O25/100 -> 0 | T25: =S25/100 -> 0
A26: NET OPERATING INCOME | B26: =C26/C12 -> 0.7434692645 | C26: =C12-C24 -> 6301978.56 | D26: 63019.7856 | E26: =C26/93668 -> 67.27995217 | F26: =G26/G12 -> 0.7876807234 | G26: =G12-G24 -> 7326289.3 | H26: 73262.893 | I26: =G26/93668 -> 78.21549836 | J26: =K26/K12 -> 0.7908344283 | K26: =K12-K24 -> 7809225.05 | L26: 78092.2505 | M26: =K26/93668 -> 83.37132265 | N26: 0.8145322702 | O26: =O12-O24 -> 8058651.85 | P26: 80586.5185 | Q26: =O26/93668 -> 86.03420432 | R26: 0.8153457372 | S26: =S12-S24 -> 8316562.04 | T26: 83165.6204 | U26: =S26/93668 -> 88.7876547
D27: 0 | H27: 0 | L27: 0 | P27: 0 | T27: 0
A28: Capital Reserve | C28: 25000 | D28: 250 | E28: =C28/93668 -> 0.2669001153 | G28: 25000 | H28: 250 | I28: =G28/93668 -> 0.2669001153 | K28: 25000 | L28: 250 | M28: =K28/93668 -> 0.2669001153 | O28: 25000 | P28: 250 | Q28: =O28/93668 -> 0.2669001153 | S28: 25000 | T28: 250 | U28: =S28/93668 -> 0.2669001153
A29: Total Leasing & Capital | C29: =+C28 -> 25000 | D29: 250 | E29: 0.2669001153 | G29: =+G28 -> 25000 | H29: 250 | I29: =G29/93668 -> 0.2669001153 | K29: =+K28 -> 25000 | L29: 250 | M29: 0.2669001153 | O29: =+O28 -> 25000 | P29: 250 | Q29: 0.2669001153 | S29: =+S28 -> 25000 | T29: 250 | U29: 0.2669001153
D30: 0 | H30: 0 | L30: 0 | P30: 0 | T30: 0
A31: OPERATING NET CASH FLOW | B31: =C31/C12 -> 0.7405199159 | C31: =C26-C29 -> 6276978.56 | D31: 62769.7856 | E31: =C31/93668 -> 67.01305206 | F31: =G31/G12 -> 0.7849928664 | G31: =G26-G29 -> 7301289.3 | H31: 73012.893 | I31: =G31/93668 -> 77.94859824 | J31: =K31/K12 -> 0.7883026969 | K31: =K26-K29 -> 7784225.05 | L31: 77842.2505 | M31: =K31/93668 -> 83.10442253 | N31: =O31/O12 -> 0.7898659805 | O31: =O26-O29 -> 8033651.85 | P31: 80336.5185 | Q31: =O31/93668 -> 85.7673042 | R31: =S31/S12 -> 0.7914792586 | S31: =S26-S29 -> 8291562.04 | T31: 82915.6204 | U31: =S31/93668 -> 88.52075458
A32: Other Income
